Cogmind - Beta 12 @@@ ROGUE MODE // 2023.07.22 @ 14:43:08 Player: CrossedViper Result: Self-destructed Performance ------------- Evolutions (7) 3500 Regions Visited (28) 5600 Robots Destroyed (329) 1645 Value Destroyed (18977) 18977 Prototype IDs (52) 1040 Alien Tech Used (0) 0 Bonus (13179) 13179 TOTAL SCORE: 43941 Bonus ------- High Alert Combat Kills 2215 Follower Combat Kills 6203 Entered Garrisons 1400 Used RIF Installer 3500 Aligned with FarCom 300 Built Enhanced Grunts 300 A7 Reached Mainframe 300 Met R17 at Cetus 500 Friendly Fire -1539 Cogmind --------- Core Integrity 1300/1300 Matter 153/300 Energy 880/880 System Corruption 0% Temperature Cool (0) Movement Walking (120) Location -3/Research Parts ------- > --- POWER (3) -------- Reinforced Fission Core Light Antimatter Reactor > --- PROPULSION (4) --- Flexi-carbon Leg Flexi-carbon Leg Flexi-carbon Leg Flexi-carbon Leg > --- UTILITY (10) ----- Advanced Cooling System Improved Coolant Injector Advanced Energy Well Machine Analyzer Improved Armor Integrity Analyzer Relay Coupler [NC] (42) Relay Coupler [NC] (47) Relay Coupler [NC] (44) Relay Coupler [Grunt] (31) Relay Coupler [Heavy] (16) > --- WEAPON (4) ------- Matter Neutralizer Railgun Hardcell Cannon > --- INVENTORY (5) ---- Femtoactuators Relay Coupler [Proto] (9) Relay Coupler [Proto] (9) Relay Coupler [Proto] (9) Rocket Array Peak State ------------ > --- POWER ------------ Neutrino Core Micro Fission Core > --- PROPULSION ------- High-density Centrium Leg High-density Centrium Leg High-density Centrium Leg High-density Centrium Leg > --- UTILITY ---------- Coolant Network High-capacity Storage Unit Centrium Medium Armor Plating Centrium Medium Armor Plating Relay Coupler [Brawler] Relay Coupler [Hunter] Relay Coupler [Heavy] > --- WEAPON ----------- Advanced Plasma Rifle Advanced Plasma Rifle Advanced Plasma Rifle > --- INVENTORY -------- Centrium Heavy Treads Transport Network Coupler Femtoactuators Antimissile System Relay Coupler [NC] Relay Coupler [NC] Relay Coupler [Duelist] Relay Coupler [Hunter] Relay Coupler [Proto] Relay Coupler [Proto] Relay Coupler [Proto] Heavy Gatling Laser Advanced Variable Charge Gun Cooled Plasma Cannon Cooled Plasma Cannon Rocket Array Remote Datajack [Rating: 138] Favorites ----------- Power Quantum Reactor Engine Heavy Ion Engine Power Core Neutrino Core Reactor Quantum Reactor Propulsion Light Treads Treads Light Treads Leg Advanced VSS Leg Wheel Armored Huge Wheel Flight Unit Cooled Field Propulsion Drive Utility High-capacity Storage Unit Device Advanced Transmission Jammer Storage High-capacity Storage Unit Processor Armor Integrity Analyzer Hackware Relay Coupler [NC] Protection Centrium Medium Armor Plating Weapon Cooled Plasma Cannon Energy Gun Heavy Wave Gun Energy Cannon Cooled Plasma Cannon Ballistic Gun Autogun Ballistic Cannon Tri-rail Accelerator Launcher Rocket Array Special Weapon Remote Datajack Slashing Weapon Great Axe Special Melee Weapon Improved Datajack Build | -11 -10 -10 -9 -9 -9 -8 -8 -7 -7 -7 -7 -6 -6 -6 -6 -6 -6 -6 -6 -5 -5 -5 -5 -4 -4 -4 -4 -3 ------- Run | Jun Mat Min Mat Min Exi Min Mat Fac Gar Fac Gar Fac Gar Fac Ext Cet Arc Hub Gar Fac Gar Fac Gar Fac Was Fac Gar Res Slots Evolved 14 | . . . 2 . . . 2 2 . . . 2 . . . . . . . 2 . . . 2 . . . 2 Power 2 | . . . . . . . . . . . . 1 . . . . . . . . . . . . . . . 1 Propulsion 2 | . . . . . . . 1 1 . . . . . . . . . . . . . . . . . . . . Utility 8 | . . . 2 . . . . 1 . . . 1 . . . . . . . 2 . . . 2 . . . . Weapon 2 | . . . . . . . 1 . . . . . . . . . . . . . . . . . . . . 1 Parts Attached 359 | 5 4 . 12 5 1 . 11 7 31 36 16 13 29 9 6 16 . 6 12 7 13 34 15 12 6 23 30 . Power 28 | 1 . . 1 . . . . 1 3 2 . 1 3 . . 2 . . . . 1 2 3 . . 4 4 . Engine 7 | 1 . . 1 . . . . 1 3 1 . . . . . . . . . . . . . . . . . . Core 9 | . . . . . . . . . . . . 1 . . . . . . . . 1 2 2 . . 2 1 . Reactor 12 | . . . . . . . . . . 1 . . 3 . . 2 . . . . . . 1 . . 2 3 . Propulsion 67 | 2 1 . 5 3 . . 3 3 7 4 5 2 4 . 1 2 . . 1 . . 7 . 2 2 6 7 . Treads 35 | 2 1 . 5 3 . . 3 2 5 . 1 2 4 . 1 2 . . 1 . . 1 . . 1 . 1 . Leg 30 | . . . . . . . . . 2 4 4 . . . . . . . . . . 5 . 2 1 6 6 . Wheel 1 | . . . . . . . . 1 . . . . . . . . . . . . . . . . . . . . Hover . | . . . . . . . . . . . . . . . . . . . . . . . . . . . . . Flight 1 | . . . . . . . . . . . . . . . . . . . . . . 1 . . . . . . Utility 126 | . 2 . 3 2 . . 3 1 8 12 9 5 8 4 1 6 . 4 6 4 9 13 7 3 4 4 8 . Device 19 | . 1 . . . . . . 1 2 . 1 . 1 . . . . . . . . 6 . . 2 1 4 . Storage 5 | . 1 . . . . . . . 1 . . . . . 1 . . . . . . . . . . 1 1 . Processor 7 | . . . . . . . 1 . . 2 . 1 . . . . . 1 . . . . . . . 2 . . Hackware 56 | . . . . . . . 1 . . 6 4 4 5 3 . 2 . 1 5 2 8 3 7 1 2 . 2 . Protection 39 | . . . 3 2 . . 1 . 5 4 4 . 2 1 . 4 . 2 1 2 1 4 . 2 . . 1 . Artifact . | . . . . . . . . . . . . . . . . . . . . . . . . . . . . . Weapon 138 | 2 1 . 3 . 1 . 5 2 13 18 2 5 14 5 4 6 . 2 5 3 3 12 5 7 . 9 11 . Energy Gun 34 | 1 . . 1 . . . . . . 5 . 1 4 . . 2 . . 1 . . 8 2 4 . 3 2 . Energy Cannon 22 | . . . . . . . . 1 . 2 . 1 . 1 2 . . 2 3 2 1 1 . 1 . 4 1 . Ballistic Gun 30 | 1 1 . 2 . 1 . 4 1 8 4 . . . . . 2 . . . . . . . . . . 6 . Ballistic Cannon 10 | . . . . . . . 1 . . 1 . 1 1 2 1 . . . . . . . 2 . . . 1 . Launcher 14 | . . . . . . . . . 4 2 . . 3 1 . . . . . . . 1 . 1 . 1 1 . Special Weapon 22 | . . . . . . . . . . 3 1 2 3 1 1 2 . . 1 1 2 2 1 1 . 1 . . Impact Weapon . | . . . . . . . . . . . . . . . . . . . . . . . . . . . . . Slashing Weapon 2 | . . . . . . . . . 1 1 . . . . . . . . . . . . . . . . . . Piercing Weapon . | . . . . . . . . . . . . . . . . . . . . . . . . . . . . . Special Melee Weapon 4 | . . . . . . . . . . . 1 . 3 . . . . . . . . . . . . . . . Unidentified Prototypes 29 | . . . 2 . . . 1 1 . 7 1 2 . 2 . 3 . . 1 . . 8 . . 1 . . . Corrupted Parts 1 | . . . . . . . . . . . . . . . . . . . 1 . . . . . . . . . System Corruption 11 | . . . . . . . . . . . . . . . . . . . 11 . . . . . . . . . Parts Lost 47 | . . . . 4 . . 5 1 8 2 . 4 . . . . . 1 . . 1 5 1 3 . 8 4 . Power 11 | . . . . . . . . 1 1 1 . 1 . . . . . . . . . 2 . 2 . 2 1 . Propulsion 12 | . . . . 2 . . 2 . 3 . . 1 . . . . . . . . . . . . . 3 1 . Utility 14 | . . . . 2 . . 2 . 2 . . 2 . . . . . 1 . . 1 2 . . . . 2 . Weapon 10 | . . . . . . . 1 . 2 1 . . . . . . . . . . . 1 1 1 . 3 . . Highest Loss Streak 4 | . . . . 4 . . 2 1 3 2 . 3 . . . . . 1 . . 1 2 1 2 . 3 3 . To Critical Strikes . | . . . . . . . . . . . . . . . . . . . . . . . . . . . . . Average Slot Usage (%) 86 | . 89 100 100 99 97 100 91 91 88 98 94 81 74 80 80 83 86 85 85 86 85 83 89 79 48 73 92 90 Engine 3 | . 14 14 11 11 11 11 9 7 6 3 7 5 . . . . . . . . . . . . . . . . Core 1 | . . . . . . . . . . . . 2 1 . . . . . . . 1 5 10 4 . 3 3 4 Reactor 4 | . . . . . . . . . . 3 . . 9 13 13 13 13 13 13 11 9 2 . 4 . 1 6 4 Treads 11 | . 28 28 22 21 22 22 24 20 16 2 4 10 13 20 20 14 13 13 13 11 11 9 . . 5 2 1 . Leg 7 | . . . . . . . . . 1 27 21 8 . . . . . . . . . 2 23 20 1 7 18 19 Device 4 | . 7 14 11 11 11 11 9 11 15 2 . . 3 6 6 6 6 4 . . . . 5 5 5 2 8 9 Storage 6 | . 10 14 11 11 11 11 9 7 7 7 7 6 6 6 6 6 6 6 6 5 5 5 5 5 2 2 5 4 Processor 2 | . . . . . . . 3 7 1 3 . 1 6 5 . . . . 6 5 5 4 . . . 6 10 9 Hackware 14 | . . . . . . . 2 7 1 14 17 16 12 6 13 8 6 11 18 17 23 27 18 24 31 34 21 23 Protection 8 | . . . 22 21 22 22 7 . 8 7 11 12 6 6 6 14 20 14 7 15 8 3 8 3 . . . . Energy Gun 3 | . 11 . . . . . . . . 3 16 6 2 . . 4 6 5 . . . 2 7 6 2 3 . . Energy Cannon 3 | . . . . . . . . . . . . . . 1 5 . . . 18 12 12 8 . 1 . 4 2 4 Ballistic Gun 6 | . 16 28 21 22 19 22 25 22 22 7 . . . . . 10 13 12 . . . . . . . . 6 4 Ballistic Cannon 1 | . . . . . . . 1 . . . . 2 5 5 5 . . . . . . . 2 . . . 2 4 Special Weapon 2 | . . . . . . . . . . 5 5 3 1 4 . 1 . . 1 3 3 4 2 1 . 1 . . Naked Turns . | . . . . . . . . . . . . . . . . . . . . . . . . . . . . . Heaviest Build 133 | 8 31 31 45 45 45 45 48 40 82 93 93 114 128 111 111 128 128 128 126 133 133 112 104 107 47 43 81 65 Greatest Support 160 | 40 40 40 40 43 43 43 63 86 78 73 75 115 135 115 125 160 160 160 160 160 160 160 96 96 80 80 80 80 Greatest Overweight (x) 7 | . . . 1 1 1 1 1 1 2 1 1 1 1 . . 2 . . . . . 2 1 2 1 7 1 . Average Overweight (x) . | . . . 1 1 . 1 . . 1 . . . . . . . . . . . . . . . . . . . Largest Inventory Capacity 20 | 5 15 15 15 15 15 15 15 15 20 20 20 20 20 20 20 20 20 20 20 20 20 20 20 20 20 5 5 5 Average Capacity 17 | 5 12 15 15 15 15 15 15 15 19 20 20 20 20 20 20 20 20 20 20 20 20 20 20 20 12 5 5 5 Most Carried 20 | 4 15 15 15 14 14 13 15 15 20 20 20 20 20 20 20 20 20 20 20 19 20 20 20 20 17 5 5 5 Average Carried 16 | 2 6 15 14 12 11 13 14 13 17 19 19 19 19 19 19 19 20 19 19 18 18 19 19 17 10 4 5 5 Final Capacity 20 | 5 15 15 15 15 15 15 15 15 20 20 20 20 20 20 20 20 20 20 20 20 20 20 20 20 5 5 5 5 Final Carried 20 | 4 15 15 12 10 13 13 13 15 20 19 20 18 20 19 20 20 20 20 20 18 20 18 20 16 5 5 5 5 Class Distribution -------------------- 28% | Botlord-Mutant 20% | Bothacker-Mutant 19% | Mutant 9% | Botlord-Tank 8% | Scavenger-Skirmisher 4% | Botlord-Skirmisher Dominant Class ---------------- Mutant | -10/Materials Mutant | -10/Mines Mutant | -9/Materials Mutant | -9/Mines Mutant | -9/Exiles Mutant | -8/Mines Skirmisher | -8/Materials Scavenger-Skirmisher | -7/Factory Scavenger-Skirmisher | -7/Garrison Bothacker-Mutant | -7/Factory Bothacker-Mutant | -7/Garrison Bothacker-Mutant | -6/Factory Bothacker-Mutant | -6/Garrison Botlord-Mutant | -6/Factory Botlord-Skirmisher | -6/Extension Botlord-Tank | -6/Cetus Botlord-Tank | -6/Archives Botlord-Tank | -6/Hub_04(d) Botlord-Tank | -6/Garrison Botlord-Mutant | -5/Factory Botlord-Mutant | -5/Garrison Botlord-Mutant | -5/Factory Botlord-Mutant | -5/Garrison Botlord-Mutant | -4/Factory Mutant | -4/Waste Mutant | -4/Factory Scavenger-Skirmisher | -4/Garrison Scavenger-Skirmisher | -3/Research Resources | -11 -10 -10 -9 -9 -9 -8 -8 -7 -7 -7 -7 -6 -6 -6 -6 -6 -6 -6 -6 -5 -5 -5 -5 -4 -4 -4 -4 -3 ----------- Run | Jun Mat Min Mat Min Exi Min Mat Fac Gar Fac Gar Fac Gar Fac Ext Cet Arc Hub Gar Fac Gar Fac Gar Fac Was Fac Gar Res Matter Collected 9778 | 250 . 52 641 350 . . 788 185 1138 969 243 278 728 227 262 299 120 131 230 125 210 517 619 186 . 402 828 . Remotely . | . . . . . . . . . . . . . . . . . . . . . . . . . . . . . Salvage Created 13392 | . 57 . 1049 255 . . 1099 236 1518 984 48 310 664 191 701 387 102 212 308 406 420 758 966 399 . 1497 825 . Parts 679 | . 6 . 68 16 . . 60 16 85 54 3 13 32 9 40 23 10 17 24 11 15 28 34 20 . 49 46 . Haulers Intercepted 11 | . 1 . 2 . . . 1 1 . 2 . . . . 1 . . . . 2 . 1 . . . . . . Recyclers Shooed 4 | . . . . . . . . . . . . . . . . . . . . . . 1 . 1 . 2 . . Parts Field Recycled . | . . . . . . . . . . . . . . . . . . . . . . . . . . . . . Retrieved Matter . | . . . . . . . . . . . . . . . . . . . . . . . . . . . . . Parts Self-Destructed . | . . . . . . . . . . . . . . . . . . . . . . . . . . . . . Prevented . | . . . . . . . . . . . . . . . . . . . . . . . . . . . . . Kills | -11 -10 -10 -9 -9 -9 -8 -8 -7 -7 -7 -7 -6 -6 -6 -6 -6 -6 -6 -6 -5 -5 -5 -5 -4 -4 -4 -4 -3 ------- Run | Jun Mat Min Mat Min Exi Min Mat Fac Gar Fac Gar Fac Gar Fac Ext Cet Arc Hub Gar Fac Gar Fac Gar Fac Was Fac Gar Res Combat Hostiles Destroyed 248 | . . . 14 9 . . 16 2 32 16 2 6 22 3 8 4 . 4 9 3 11 10 22 12 . 21 22 . Melee 3 | . . . . . . . . . . 3 . . . . . . . . . . . . . . . . . . Guns 103 | . . . 14 9 . . 15 2 20 4 2 . 6 . . 3 . 4 . . . 3 15 2 . 1 3 . Cannons 79 | . . . . . . . 1 . . 1 . 6 13 3 6 . . . 8 3 11 3 5 1 . 12 6 . AOE 51 | . . . . . . . . . 12 8 . . 3 . 1 . . . . . . 3 . 9 . 3 12 . Classes Destroyed 20 | . 2 . 7 2 . . 2 1 3 . 1 . 1 . . . . . . . . . . . . 1 . . Worker 19 | . . . 1 3 . . 1 . . 5 . 1 . . . . . . . . . 1 . 5 . 2 . . Builder 7 | . 1 . 2 . . . . . . 1 . . . 1 1 . . . . . . 1 . . . . . . Tunneler 4 | . . . . 1 . . . . . . . . . . 1 . . . . . . 1 . 1 . . . . Hauler 12 | . 1 . 2 . . . 1 1 . 2 . 1 . . 1 . . . . 2 . 1 . . . . . . Recycler 13 | . . . 4 . . . 3 1 . 2 . . . . 1 . . . . . . 1 . . . 1 . . Mechanic 1 | . . . . . . . . . . . . . . . . . . . . . . . . . . 1 . . Operator 8 | . . . . . . . 2 . . . . . 1 1 1 . 3 . . . . . . . . . . . Watcher 12 | . . . 2 . . . 1 . . 1 . 2 . . 2 2 . 1 . . . . . . . 1 . . Swarmer 65 | . . . 3 5 . . . . 9 . . 3 11 . . . . 2 2 . 5 . 11 4 . . 10 . Cutter 1 | . . . . . . . . . . . 1 . . . . . . . . . . . . . . . . . Grunt 67 | . . . 9 1 . . 12 . 4 1 1 . 6 2 2 . . . . 1 2 1 4 2 . 12 7 . Brawler 7 | . . . 1 1 . . . . . 1 . 1 . . 1 . . . . 1 . . . 1 . . . . Duelist 3 | . . . . . . . . . 1 . . . . . . . . . . 1 . . . . . . 1 . Protector 6 | . . . . . . . . . 1 2 . . . . 1 . . . . . . 1 . 1 . . . . Sentry 21 | . . . 1 . . . 3 . 5 . . 1 3 . 1 . . 1 . . 1 1 2 . . 1 1 . Demolisher 3 | . . . . 2 . . . . 1 . . . . . . . . . . . . . . . . . . . Specialist 8 | . . . . . . . . . 3 3 . . . . . . . . . . . 1 1 . . . . . Hunter 25 | . . . . . . . 1 . 3 4 . . . 1 . . . 1 1 . . 3 5 2 . 2 2 . Programmer 34 | . . . . . . . . 2 5 5 . 1 1 . 1 . . . 5 . 3 3 . 2 . 6 . . Behemoth 5 | . . . . . . . . . . . . . 1 . 2 . . . 1 . . . . . . . 1 . Cetus Guard 4 | . . . . . . . . . . . . . . . . 4 . . . . . . . . . . . . Thug 1 | . . . . . . . . . . . . . . . 1 . . . . . . . . . . . . . Savage 1 | . . . . . . . . . . . . . . . . . . . . . . . . 1 . . . . Guerrilla 1 | . . . . . . . . . . . . . . . . 1 . . . . . . . . . . . . Infiltrator 1 | . . . . . . . . . . . . . . . . . . . . . . 1 . . . . . . Best Kill Streak 11 | . 1 . 7 4 . . 7 1 6 10 1 3 4 3 4 4 3 2 5 3 5 9 11 10 . 4 10 . Combat Bots Only 11 | . . . 4 4 . . 4 1 6 9 1 3 4 3 2 3 . 2 5 3 5 6 11 5 . 4 10 . Max Kills in Single Turn 5 | . 1 . 2 1 . . 2 1 2 4 1 2 3 1 3 1 1 1 2 1 2 4 1 4 . 3 5 . Gunslinging 1 | . . . 1 . . . . . 1 . . . . . . . . . . . . . . . . . . . Exploded 5 | . . . . . . . . . 2 4 . . 3 . 1 . . . . . . 3 . 3 . 3 5 . Melee 1 | . . . . . . . . . . 1 . . . . . . . . . . . . . . . . . . Uniques/NPCs Destroyed . | . . . . . . . . . . . . . . . . . . . . . . . . . . . . . Combat | -11 -10 -10 -9 -9 -9 -8 -8 -7 -7 -7 -7 -6 -6 -6 -6 -6 -6 -6 -6 -5 -5 -5 -5 -4 -4 -4 -4 -3 -------- Run | Jun Mat Min Mat Min Exi Min Mat Fac Gar Fac Gar Fac Gar Fac Ext Cet Arc Hub Gar Fac Gar Fac Gar Fac Was Fac Gar Res Damage Taken 23128 | . 36 . 762 1063 . . 1048 77 2612 985 492 1109 1192 222 459 769 72 723 333 278 954 2149 1364 2521 59 2256 1593 . Core 2896 | . . . 45 181 . . 134 . 331 161 150 84 72 20 15 51 . 67 18 . 76 489 88 255 . 359 300 . Absorbed by Shields 1467 | . . . . . . . . . 98 . . . 75 . 295 221 . . . . 231 . 262 . . . 285 . Reduced by Siege Mode 69 | . . . . . . . . . . . . . 23 . . 41 . . . . . . . . . 5 . . Regen/Repaired (Parts) 478 | . . . . . . . . . . . . . . . . . . . . . . . . 478 . . . . Core Remaining (%) 55 | 100 . 100 . . . 43 75 . . . 8 . . . . . . . 61 . . . 34 . . . 20 . Volleys Fired 998 | . 15 . 77 37 . . 56 10 83 70 25 42 55 31 38 26 15 20 23 25 46 53 90 27 . 86 44 4 Largest 3 | . 2 . 2 2 . . 3 3 3 3 3 2 2 2 2 3 3 3 3 3 3 3 3 3 . 3 3 3 Hottest 276 | . 60 . 46 46 . . 81 75 91 202 202 176 88 95 135 96 96 96 105 105 105 264 276 215 . 225 205 205 Shots Fired 1849 | . 27 . 154 74 . . 167 30 213 83 38 44 77 33 59 46 43 49 46 43 83 76 169 47 . 129 107 12 Gun 1199 | . 27 . 154 74 . . 155 30 203 46 30 4 33 . . 41 43 49 . . . 26 121 31 . 62 66 4 Cannon 422 | . . . . . . . 12 . . 1 . 21 36 22 49 . . . 41 32 66 20 22 6 . 51 35 8 Launcher 29 | . . . . . . . . . 10 3 . . 1 . . . . . . . . 2 . 4 . 3 6 . Special 199 | . . . . . . . . . . 33 8 19 7 11 10 5 . . 5 11 17 28 26 6 . 13 . . Kinetic 963 | . 17 . 154 74 . . 167 30 203 29 . 15 36 12 21 22 30 38 . . . . 22 . . . 85 8 Thermal 648 | . 10 . . . . . . . . 17 30 4 33 10 28 19 13 11 41 32 66 46 121 37 . 110 16 4 Explosive 29 | . . . . . . . . . 10 3 . . 1 . . . . . . . . 2 . 4 . 3 6 . Electromagnetic 10 | . . . . . . . . . . 1 . 6 . . . . . . . . . . . . . 3 . . Robot Hit Streak 27 | . 2 . 15 12 . . 12 5 13 8 5 11 21 7 14 23 5 7 6 14 9 11 27 8 . 18 11 2 Robot Miss Streak 8 | . 3 . 4 5 . . 3 3 5 3 2 4 3 3 5 1 8 4 2 3 3 6 6 7 . 3 6 3 Penetration Max 1 | . . . . . . . . . 1 . . . . . . . . 1 . . . . 1 . . . . . Secondary Targets 15 | . . . 2 1 . . 1 . 3 . . . . . . 2 . . . . . . 6 . . . . . Max Gunslinging Chain 1 | . . . 1 1 . . 1 . 1 . . . . . . 1 . . . . . . 1 . . . . . Shots Hit Robots 1221 | . 12 . 102 41 . . 108 15 164 78 23 34 60 18 37 40 20 20 23 26 47 54 108 28 . 88 72 3 Core Hits 656 | . 4 . 38 17 . . 44 6 88 34 6 16 30 8 21 14 8 8 8 8 14 60 39 71 . 54 60 . Critical Kills 12 | . . . 1 . . . . . 3 . . . . . 1 2 . . 1 1 . . . . . 2 1 . Critical Parts Destroyed 5 | . . . . 1 . . 1 . 3 . . . . . . . . . . . . . . . . . . . Critical Strikes 42 | . . . 1 1 . . 1 . 7 2 1 1 2 2 1 4 . 2 1 1 . . 10 . . 3 2 . Burn 15 | . . . . . . . . . . 1 1 . 2 . . 1 . . . . . . 9 . . 1 . . Meltdown 6 | . . . . . . . . . . . . . . . 1 . . . 1 1 . . . . . 2 1 . Destroy 14 | . . . 1 1 . . 1 . 6 . . . . . . 3 . 2 . . . . . . . . . . Blast 5 | . . . . . . . . . . . . 1 . 2 . . . . . . . . 1 . . . 1 . Sever 2 | . . . . . . . . . 1 1 . . . . . . . . . . . . . . . . . . Melee Attacks 52 | . . . . . . . . . 12 29 7 . 4 . . . . . . . . . . . . . . . Impact . | . . . . . . . . . . . . . . . . . . . . . . . . . . . . . Slashing 41 | . . . . . . . . . 12 29 . . . . . . . . . . . . . . . . . . Piercing . | . . . . . . . . . . . . . . . . . . . . . . . . . . . . . Sneak Attacks 9 | . . . . . . . . . . 8 . . 1 . . . . . . . . . . . . . . . Combat Hostiles 1 | . . . . . . . . . . 1 . . . . . . . . . . . . . . . . . . Follow-up Attacks . | . . . . . . . . . . . . . . . . . . . . . . . . . . . . . Damage Inflicted 38023 | . 145 . 1476 730 . . 2041 295 4996 2803 439 1043 2743 480 2219 938 630 558 716 543 1150 2550 2724 2739 . 2903 3073 89 Guns 16192 | . 134 . 1469 706 . . 1711 295 2759 763 439 117 579 . . 938 630 558 . . . 568 1931 699 . 823 1073 . Cannons 11312 | . . . . . . . 90 . . 38 . 877 1856 479 1740 . . . 716 543 1150 524 793 98 . 1538 803 67 Explosions 8320 | . . . . . . . 240 . 1411 861 . . 308 . 479 . . . . . . 1383 . 1908 . 533 1197 . Melee 1945 | . . . . . . . . . 826 1119 . . . . . . . . . . . . . . . . . . Ramming 254 | . 11 . 7 24 . . . . . 22 . 49 . 1 . . . . . . . 75 . 34 . 9 . 22 Kinetic 15397 | . 82 . 1469 706 . . 1801 295 2759 446 . 718 1856 417 1278 547 405 384 . . . . 793 . . . 1410 31 Thermal 13046 | . 52 . . . . . 240 . . 317 439 117 579 62 941 391 225 174 716 543 1150 1092 1931 1251 . 2324 466 36 Explosive 7130 | . . . . . . . . . 1411 861 . . 308 . . . . . . . . 1383 . 1437 . 533 1197 . Electromagnetic 251 | . . . . . . . . . . 38 . 159 . . . . . . . . . . . 17 . 37 . . Impact . | . . . . . . . . . . . . . . . . . . . . . . . . . . . . . Slashing 1945 | . . . . . . . . . 826 1119 . . . . . . . . . . . . . . . . . . Piercing . | . . . . . . . . . . . . . . . . . . . . . . . . . . . . . Highest Corruption 12 | . . . . . . . . . 8 12 12 . . . . . . 1 12 . 4 10 10 2 2 9 9 . Average Corruption 6 | . . . . . . . . . 4 10 12 . . . . . . 1 2 . 1 5 10 1 2 5 9 . Corruption Purged . | . . . . . . . . . . . . . . . . . . . . . . . . . . . . . Corruption Blocked . | . . . . . . . . . . . . . . . . . . . . . . . . . . . . . Effects 320 | . . . . . . . . . 16 72 51 . . . . . . 3 10 . 10 37 58 1 2 29 31 . Message Errors 74 | . . . . . . . . . 4 22 10 . . . . . . 1 1 . 3 10 11 . 1 5 6 . Matter Fused 67 | . . . . . . . . . 3 16 13 . . . . . . . 1 . . 8 10 . 1 9 6 . Heat Flow Errors 41 | . . . . . . . . . 4 6 8 . . . . . . . 3 . . 5 5 . . 4 6 . Energy Discharges 38 | . . . . . . . . . . 9 7 . . . . . . . 2 . 3 5 9 . . 3 . . Parts Rejected 5 | . . . . . . . . . . 2 . . . . . . . 1 . . . . 2 . . . . . Parts Fused 3 | . . . . . . . . . 1 . . . . . . . . . . . . . 2 . . . . . Data Loss (minor) 34 | . . . . . . . . . 2 9 6 . . . . . . . 1 . 2 3 7 . . 1 3 . Data Loss (major) 11 | . . . . . . . . . . 2 3 . . . . . . . . . 1 1 1 1 . 1 1 . Misfires 14 | . . . . . . . . . . 3 3 . . . . . . . 1 . 1 1 2 . . 2 1 . Alerts 11 | . . . . . . . . . 2 2 1 . . . . . . 1 1 . . 1 3 . . . . . Misdirections 3 | . . . . . . . . . . 1 . . . . . . . . . . . 1 1 . . . . . Weapon Failures 19 | . . . . . . . . . . . . . . . . . . . . . . 2 5 . . 4 8 . Overload Shots 5 | . . . . . . . . . . . . . . . 1 1 . 1 . . . 2 . . . . . . Effects 1 | . . . . . . . . . . . . . . . . . . . . . . 1 . . . . . . Energy Bleed 1 | . . . . . . . . . . . . . . . . . . . . . . 1 . . . . . . Overflow Damage 790 | . . . . . . . 53 . 91 225 . 26 35 . 68 . . . . . 41 20 . 130 . 42 42 17 Projectiles 262 | . . . . . . . . . . . . 26 25 . 49 . . . . . 41 20 . . . 42 42 17 Explosions 256 | . . . . . . . 53 . 44 . . . 10 . 19 . . . . . . . . 130 . . . . Melee 272 | . . . . . . . . . 47 225 . . . . . . . . . . . . . . . . . . Knockbacks 27 | . 1 . . . . . . . . . . 3 4 7 4 . . . . . . 1 3 . . . 4 . Impact 3 | . 1 . . . . . . . . . . 1 . . . . . . . . . 1 . . . . . . Kinetic 21 | . . . . . . . . . . . . 2 3 7 3 . . . . . . . 2 . . . 4 . Secondary 3 | . . . . . . . . . . . . . 1 . 1 . . . . . . . 1 . . . . . Self-Inflicted Damage 523 | . . . . . . . 113 . 122 . . . . . . . . . . . . 59 . . . 141 88 . Shots 19 | . . . . . . . 1 . 5 . . . . . . . . . . . . 3 . . . 5 5 . Rammed 22 | . 1 . 2 3 . . . . . . . 7 . 1 . . . . . . . 6 . . . 2 . . Targets Rammed 33 | . 1 . 2 4 . . . . . 6 . 7 . 1 . . . . . . . 6 . 3 . 2 . 1 Kicked 10 | . . . . . . . . . . 6 . . . . . . . . . . . . . 3 . . . 1 Crushed 1 | . . . . 1 . . . . . . . . . . . . . . . . . . . . . . . . Highest Temperature 820 | . 2 . 283 173 . . 367 . 264 380 401 194 336 96 244 317 262 84 198 60 96 820 166 . . 522 249 108 Average Temperature 93 | . 1 . 74 81 . . 114 . 89 129 111 55 84 24 78 93 111 32 41 20 37 205 63 . . 112 81 48 Received Heat Transfer 3904 | . . . 405 60 . . 540 . 386 204 177 378 256 18 97 70 9 102 45 18 159 186 108 283 . 204 199 . Effects 16 | . . . 1 . . . 2 . . 1 1 . . . . . . . . . . 10 . . . 1 . . Shutdowns 2 | . . . . . . . . . . . . . . . . . . . . . . 2 . . . . . . Energy Bleed 2 | . . . . . . . 1 . . . . . . . . . . . . . . . . . . 1 . . Interference 3 | . . . 1 . . . . . . 1 1 . . . . . . . . . . . . . . . . . Short Circuit 3 | . . . . . . . . . . . . . . . . . . . . . . 3 . . . . . . Damage (minor) 4 | . . . . . . . 1 . . . . . . . . . . . . . . 3 . . . . . . Damage (core) 2 | . . . . . . . . . . . . . . . . . . . . . . 2 . . . . . . Siege Activations 5 | . . . . . . . . . . . . . 2 . . 1 . . 1 . . . . . . 1 . . Total Turns 114 | . . . . . . . . . . . . . 22 . . 18 . . 16 . . . . . . 58 . . Longest Duration 58 | . . . . . . . . . . . . . 14 . . 18 . . 16 . . . . . . 58 . . Robots Corrupted 1 | . . . . . . . . . . . . 1 . . . . . . . . . . . . . . . . Combat Hostiles . | . . . . . . . . . . . . . . . . . . . . . . . . . . . . . Parts Fried 2 | . . . . . . . . . . . . 1 . . . 1 . . . . . . . . . . . . Impact Corruptions 1 | . . . . . . . . . . . . . . . 1 . . . . . . . . . . . . . Robots Melted 13 | . . . . . . . . . . . . . . . 1 1 . . 1 1 . 1 2 . . 5 1 . Combat Hostiles 12 | . . . . . . . . . . . . . . . 1 1 . . 1 . . 1 2 . . 5 1 . Parts Melted 61 | . . . . . . . . . . 1 . . 1 . 2 1 . . 6 1 5 8 17 1 . 17 1 . Heat Transferred 19565 | . 125 . . . . . 150 . . 444 666 148 925 100 1235 629 333 259 1000 850 1675 1680 4300 1321 . 3207 481 37 Parts Sabotaged 4 | . . . . . . . . . . . . . . . . . . . . . . . . 4 . . . . Parts Stolen . | . . . . . . . . . . . . . . . . . . . . . . . . . . . . . Parts Stripped . | . . . . . . . . . . . . . . . . . . . . . . . . . . . . . Power Chain Reactions . | . . . . . . . . . . . . . . . . . . . . . . . . . . . . . Missiles Intercepted . | . . . . . . . . . . . . . . . . . . . . . . . . . . . . . Alert | -11 -10 -10 -9 -9 -9 -8 -8 -7 -7 -7 -7 -6 -6 -6 -6 -6 -6 -6 -6 -5 -5 -5 -5 -4 -4 -4 -4 -3 ------- Run | Jun Mat Min Mat Min Exi Min Mat Fac Gar Fac Gar Fac Gar Fac Ext Cet Arc Hub Gar Fac Gar Fac Gar Fac Was Fac Gar Res Peak Influence 1254 | . 43 . 312 205 . . 399 172 982 523 995 606 1192 641 975 1018 570 555 1241 674 1234 686 1254 681 133 297 919 568 Initial 658 | . . . . 79 . . . 112 128 515 122 522 133 625 141 528 380 199 388 651 309 647 247 658 121 93 207 516 Average 460 | . 19 . 125 103 . . 195 130 567 257 622 440 559 254 526 761 519 404 832 580 849 485 748 473 124 134 525 553 Maximum Alert Level 4 | . . . 1 1 . . 1 . 3 2 3 2 4 2 3 3 2 2 4 2 4 2 4 2 . 1 3 2 Low Security (%) 26 | 100 100 100 82 95 . 100 40 100 11 46 13 8 13 32 6 . . 11 . . . . . 4 100 86 . . Level 1 20 | . . . 17 4 . . 59 . 11 32 7 16 23 59 19 . 12 23 9 17 10 28 16 21 . 13 53 . Level 2 31 | . . . . . . . . . 45 21 32 75 26 7 48 25 87 64 17 82 21 71 25 74 . . 13 100 Level 3 18 | . . . . . . . . . 30 . 46 . 32 . 24 74 . . 55 . 46 . 38 . . . 33 . Level 4 3 | . . . . . . . . . . . . . 3 . . . . . 17 . 22 . 19 . . . . . Level 5 . | . . . . . . . . . . . . . . . . . . . . . . . . . . . . . High Security . | . . . . . . . . . . . . . . . . . . . . . . . . . . . . . Max Security . | . . . . . . . . . . . . . . . . . . . . . . . . . . . . . Squads Dispatched 56 | . 2 . 1 . . . 4 1 . 6 . 7 . 3 6 . . 2 . 2 . 8 . 7 . 6 . 1 Investigation 10 | . . . 1 . . . 2 . . 1 . 2 . . 2 . . 2 . . . . . . . . . . Extermination 11 | . . . . . . . . 1 . 3 . 2 . . . . . . . . . 1 . 2 . 2 . . Reinforcement 20 | . 2 . . . . . 2 . . 2 . 1 . 3 2 . . . . . . 2 . 2 . 3 . 1 Assault 8 | . . . . . . . . . . . . 1 . . 2 . . . . 2 . . . 3 . . . . Garrison 7 | . . . . . . . . . . . . 1 . . . . . . . . . 5 . . . 1 . . Intercept . | . . . . . . . . . . . . . . . . . . . . . . . . . . . . . Searches Triggered . | . . . . . . . . . . . . . . . . . . . . . . . . . . . . . Construction Impeded 5 | . . . . . . . . . . . . 1 . . . . . . . . . 1 . 1 . 2 . . Haulers Reinforced 3 | . . . . . . . . . . . . . . 1 . . . . . . . 1 . . . 1 . . Active Scanning Responses . | . . . . . . . . . . . . . . . . . . . . . . . . . . . . . Cargo Convoy Interrupts 2 | . . . . . . . . . . 1 . . . . . . . . . . . 1 . . . . . . Alert ID Control Effect 39 | . . . . . . . . . . . . . . . . . . . 6 2 9 16 6 . . . . . Stealth | -11 -10 -10 -9 -9 -9 -8 -8 -7 -7 -7 -7 -6 -6 -6 -6 -6 -6 -6 -6 -5 -5 -5 -5 -4 -4 -4 -4 -3 --------- Run | Jun Mat Min Mat Min Exi Min Mat Fac Gar Fac Gar Fac Gar Fac Ext Cet Arc Hub Gar Fac Gar Fac Gar Fac Was Fac Gar Res Distress Signals 12 | . 1 . 2 . . . . . 1 . . 1 . 1 . . . . . . . 1 . 4 . . . 1 Communications Jammed 457 | . . . . . . . . . . . . . . 8 243 75 3 128 . . . . . . . . . . Distress Signals 457 | . . . . . . . . . . . . . . 8 243 75 3 128 . . . . . . . . . . Times Spotted 597 | . 4 . 23 12 . . 21 2 33 40 26 35 30 21 36 21 6 16 16 18 42 42 46 44 6 33 21 3 Peak Tracking Total 15 | . 2 . 5 4 . . 6 1 6 12 7 11 3 3 6 5 2 5 4 6 9 10 12 15 6 6 5 2 Tactical Retreats 17 | . . . 1 3 . . . . 1 1 2 . 1 . . . . 1 . . 1 . 3 . 1 . 2 . Traps | -11 -10 -10 -9 -9 -9 -8 -8 -7 -7 -7 -7 -6 -6 -6 -6 -6 -6 -6 -6 -5 -5 -5 -5 -4 -4 -4 -4 -3 ------- Run | Jun Mat Min Mat Min Exi Min Mat Fac Gar Fac Gar Fac Gar Fac Ext Cet Arc Hub Gar Fac Gar Fac Gar Fac Was Fac Gar Res Traps Triggered 29 | . 2 . 2 . . . 1 . 4 1 6 . 3 1 1 . . . . . 1 1 4 1 . 1 . . Indirectly . | . . . . . . . . . . . . . . . . . . . . . . . . . . . . . Trap Hack Attempts . | . . . . . . . . . . . . . . . . . . . . . . . . . . . . . Triggered . | . . . . . . . . . . . . . . . . . . . . . . . . . . . . . Disarmed . | . . . . . . . . . . . . . . . . . . . . . . . . . . . . . Reprogrammed . | . . . . . . . . . . . . . . . . . . . . . . . . . . . . . Reused 1 | . . . . . . . . . . . . . . . . . . . . . . . 1 . . . . . Traps Extracted . | . . . . . . . . . . . . . . . . . . . . . . . . . . . . . Installed 2 | . . . . . . . . . . . . . . . . . . . . . . . 2 . . . . . Triggered 2 | . . . . . . . . . . 1 . . . . . . . . . . . . 1 . . . . . Most Traps Carried 2 | . . . . . . . . . . . . . . . . . . . . . . . 2 . . . . . Machines | -11 -10 -10 -9 -9 -9 -8 -8 -7 -7 -7 -7 -6 -6 -6 -6 -6 -6 -6 -6 -5 -5 -5 -5 -4 -4 -4 -4 -3 ---------- Run | Jun Mat Min Mat Min Exi Min Mat Fac Gar Fac Gar Fac Gar Fac Ext Cet Arc Hub Gar Fac Gar Fac Gar Fac Was Fac Gar Res Machines Disabled 82 | . . . 1 . . . 6 . 4 1 4 2 5 2 3 5 3 4 8 1 5 3 9 9 . 1 4 2 Max in Single Turn 4 | . . . 1 . . . 3 . 1 1 1 . 1 . 1 1 1 1 1 1 1 1 1 4 . 1 2 1 Garrison Access 1 | . . . . . . . . . . . . . . . . . . . . . . . . 1 . . . . Garrison Relay 26 | . . . . . . . . . . . 4 . 4 . . . . . 7 . 5 . 4 . . . 2 . Phase Generator 2 | . . . . . . . . . . . . . . . . . . . 1 . . . . . . . 1 . Machines Repaired . | . . . . . . . . . . . . . . . . . . . . . . . . . . . . . Machines Sabotaged . | . . . . . . . . . . . . . . . . . . . . . . . . . . . . . Overloaded Fab Kills . | . . . . . . . . . . . . . . . . . . . . . . . . . . . . . Hacking | -11 -10 -10 -9 -9 -9 -8 -8 -7 -7 -7 -7 -6 -6 -6 -6 -6 -6 -6 -6 -5 -5 -5 -5 -4 -4 -4 -4 -3 --------- Run | Jun Mat Min Mat Min Exi Min Mat Fac Gar Fac Gar Fac Gar Fac Ext Cet Arc Hub Gar Fac Gar Fac Gar Fac Was Fac Gar Res Machines Accessed 67 | . 1 . 2 . 2 1 2 2 1 3 4 7 4 6 5 1 . 6 1 1 4 2 3 4 . 4 1 . Terminals 48 | . 1 . 2 . . 1 2 . 1 2 4 4 4 3 5 1 . 5 1 . 4 . 3 3 . 1 1 . Fabricators 8 | . . . . . . . . 1 . . . 1 . 3 . . . . . . . 1 . . . 2 . . Repair Stations 1 | . . . . . . . . . . . . . . . . . . . . . . . . 1 . . . . Recycling Units 1 | . . . . . . . . . . . . 1 . . . . . . . . . . . . . . . . Scanalyzers . | . . . . . . . . . . . . . . . . . . . . . . . . . . . . . Garrison Access 7 | . . . . . . . . 1 . 1 . 1 . . . . . 1 . 1 . 1 . . . 1 . . Total Hacks 148 | . 2 . 6 . 2 3 9 3 1 6 9 17 9 8 13 2 . 14 1 1 9 3 5 8 . 15 2 . Successful 60 | . . . 2 . 2 . 3 2 1 3 4 9 4 4 5 . . 4 1 1 . 3 2 3 . 7 . . Failed 88 | . 2 . 4 . . 3 6 1 . 3 5 8 5 4 8 2 . 10 . . 9 . 3 5 . 8 2 . Catastrophic 20 | . 2 . 1 . . . 1 . . . . 2 1 1 1 1 . 3 . . 2 . . 3 . 1 1 . Database Lockouts . | . . . . . . . . . . . . . . . . . . . . . . . . . . . . . Manual 55 | . 2 . 6 . 1 3 9 . . 2 . 11 2 . . 1 . 6 . . . 2 . 4 . 6 . . Terminals 120 | . 2 . 6 . . 3 9 . 1 5 9 11 9 5 13 2 . 13 1 . 9 . 5 6 . 9 2 . Fabricators 12 | . . . . . . . . 1 . . . 1 . 3 . . . . . . . 2 . . . 5 . . Repair Stations 2 | . . . . . . . . . . . . . . . . . . . . . . . . 2 . . . . Recycling Units 4 | . . . . . . . . . . . . 4 . . . . . . . . . . . . . . . . Scanalyzers . | . . . . . . . . . . . . . . . . . . . . . . . . . . . . . Garrison Access 8 | . . . . . . . . 2 . 1 . 1 . . . . . 1 . 1 . 1 . . . 1 . . Terminal Hacks 37 | . . . 1 . 2 . 2 . 1 2 4 4 4 2 5 . . 3 1 . . . 2 1 . 3 . . Record 1 | . . . . . 1 . . . . . . . . . . . . . . . . . . . . . . . Robot Schematic 1 | . . . . . . . . . . . . 1 . . . . . . . . . . . . . . . . Robot Analysis 1 | . . . . . . . . . . . . . . . . . . . . . . . . . . 1 . . Open Door 8 | . . . . . . . . . . . 1 . 1 1 5 . . . . . . . . . . . . . Branch Access Points 4 | . . . 1 . . . 1 . . . . . . 1 . . . . . . . . . . . 1 . . Emergency Access Points 4 | . . . . . . . . . . 1 1 . 1 . . . . . . . . . 1 . . . . . Terminal Index 2 | . . . . . . . . . . . . 1 . . . . . 1 . . . . . . . . . . Garrison Index 1 | . . . . . . . . . . . . 1 . . . . . . . . . . . . . . . . Unreport Threat 5 | . . . . . . . 1 . . 1 . . . . . . . 2 . . . . . 1 . . . . Locate Traps 1 | . . . . . . . . . . . . 1 . . . . . . . . . . . . . . . . Zone Layout 1 | . . . . . . . . . . . . . . . . . . . . . . . . . . 1 . . Garrison Registry 3 | . . . . . . . . . 1 . . . 1 . . . . . . . . . 1 . . . . . Patrol Navigation 2 | . . . . . . . . . . . 1 . 1 . . . . . . . . . . . . . . . Security Stations 2 | . . . . . . . . . . . 1 . . . . . . . 1 . . . . . . . . . EX-Prototype ID Bank 1 | . . . . . 1 . . . . . . . . . . . . . . . . . . . . . . . Fabricator Hacks 4 | . . . . . . . . 1 . . . . . 2 . . . . . . . . . . . 1 . . Network Status 1 | . . . . . . . . 1 . . . . . . . . . . . . . . . . . . . . Build 3 | . . . . . . . . . . . . . . 2 . . . . . . . . . . . 1 . . Repair Station Hacks 2 | . . . . . . . . . . . . . . . . . . . . . . . . 2 . . . . Scan Component 1 | . . . . . . . . . . . . . . . . . . . . . . . . 1 . . . . Repair 1 | . . . . . . . . . . . . . . . . . . . . . . . . 1 . . . . Recycling Unit Hacks . | . . . . . . . . . . . . . . . . . . . . . . . . . . . . . Scanalyzer . | . . . . . . . . . . . . . . . . . . . . . . . . . . . . . Garrison Access Hacks 7 | . . . . . . . . 1 . 1 . 1 . . . . . 1 . 1 . 1 . . . 1 . . Unlock Access 7 | . . . . . . . . 1 . 1 . 1 . . . . . 1 . 1 . 1 . . . 1 . . Unauthorized Hacks 10 | . . . 1 . . . 1 . . . . 4 . . . . . . . . . 2 . . . 2 . . Terminals 4 | . . . 1 . . . 1 . . . . 1 . . . . . . . . . . . . . 1 . . Botnet 4 | . . . 1 . . . 1 . . . . 1 . . . . . . . . . . . . . 1 . . Fabricators 4 | . . . . . . . . . . . . 1 . . . . . . . . . 2 . . . 1 . . Prioritize 1 | . . . . . . . . . . . . . . . . . . . . . . . . . . 1 . . Liberate 1 | . . . . . . . . . . . . . . . . . . . . . . 1 . . . . . . Haulers 1 | . . . . . . . . . . . . . . . . . . . . . . 1 . . . . . . Recompile 1 | . . . . . . . . . . . . 1 . . . . . . . . . . . . . . . . Repair Stations . | . . . . . . . . . . . . . . . . . . . . . . . . . . . . . Recycling Units 2 | . . . . . . . . . . . . 2 . . . . . . . . . . . . . . . . Recyclers 1 | . . . . . . . . . . . . 1 . . . . . . . . . . . . . . . . Mask 1 | . . . . . . . . . . . . 1 . . . . . . . . . . . . . . . . Scanalyzers . | . . . . . . . . . . . . . . . . . . . . . . . . . . . . . Garrison Access . | . . . . . . . . . . . . . . . . . . . . . . . . . . . . . Data Cores Recovered 1 | . . . . . . . . . . . . . . . . . . . . . . . . 1 . . . . Used . | . . . . . . . . . . . . . . . . . . . . . . . . . . . . . Hacking Detections 52 | . 1 . 2 . . 1 2 1 . 2 3 5 3 4 4 1 . 5 1 1 4 1 3 4 . 3 1 . Full Trace Events 12 | . 1 . 1 . . 1 1 . . 1 1 1 . . 2 . . 1 . . 2 . . . . . . . Feedback Events 2 | . . . . . . . . . . . . 1 . . . . . 1 . . . . . . . . . . Corruption 1 | . . . . . . . . . . . . . . . . . . 1 . . . . . . . . . . Hackware Fried 1 | . . . . . . . . . . . . 1 . . . . . . . . . . . . . . . . Feedback Blocked . | . . . . . . . . . . . . . . . . . . . . . . . . . . . . . Robot Schematics Acquired 1 | . . . . . . . . . . . . 1 . . . . . . . . . . . . . . . . Robots Built 1 | . . . . . . . . . . . . . . 1 . . . . . . . . . . . . . . Authchips . | . . . . . . . . . . . . . . . . . . . . . . . . . . . . . Time 40 | . . . . . . . . . . . . . . 40 . . . . . . . . . . . . . . Total Robot Build Rating 1 | . . . . . . . . . . . . . . 1 . . . . . . . . . . . . . . Part Schematics Acquired . | . . . . . . . . . . . . . . . . . . . . . . . . . . . . . Parts Built 2 | . . . . . . . . . . . . . . 1 . . . . . . . . . . . 1 . . Authchips . | . . . . . . . . . . . . . . . . . . . . . . . . . . . . . Time 203 | . . . . . . . . . . . . . . 64 . . . . . . . . . . . 139 . . Total Part Build Rating 17 | . . . . . . . . . . . . . . 8 . . . . . . . . . . . 9 . . Parts Repaired 1 | . . . . . . . . . . . . . . . . . . . . . . . . 1 . . . . Time 54 | . . . . . . . . . . . . . . . . . . . . . . . . 54 . . . . Parts Recycled . | . . . . . . . . . . . . . . . . . . . . . . . . . . . . . Recycled Matter . | . . . . . . . . . . . . . . . . . . . . . . . . . . . . . Retrieved Matter . | . . . . . . . . . . . . . . . . . . . . . . . . . . . . . Retrieved Components . | . . . . . . . . . . . . . . . . . . . . . . . . . . . . . Parts Scanalyzed . | . . . . . . . . . . . . . . . . . . . . . . . . . . . . . Part Schematics Acquired . | . . . . . . . . . . . . . . . . . . . . . . . . . . . . . Parts Damaged . | . . . . . . . . . . . . . . . . . . . . . . . . . . . . . Bothacking | -11 -10 -10 -9 -9 -9 -8 -8 -7 -7 -7 -7 -6 -6 -6 -6 -6 -6 -6 -6 -5 -5 -5 -5 -4 -4 -4 -4 -3 ------------ Run | Jun Mat Min Mat Min Exi Min Mat Fac Gar Fac Gar Fac Gar Fac Ext Cet Arc Hub Gar Fac Gar Fac Gar Fac Was Fac Gar Res Used RIF Installer 7 | . . . . . . . . . 2 . 1 . 1 . . . . . 1 . 1 . 1 . . . . . Code Merge 1 | . . . . . . . . . . . . . . . . . . . . . 1 . . . . . . . Threat Obfuscator 1 | . . . . . . . . . . . . . . . . . . . . . . . 1 . . . . . Zone Cloak 1 | . . . . . . . . . . . . . 1 . . . . . . . . . . . . . . . Watcher Feeds 1 | . . . . . . . . . . . 1 . . . . . . . . . . . . . . . . . Alert ID Control 1 | . . . . . . . . . . . . . . . . . . . 1 . . . . . . . . . Structural Interface 1 | . . . . . . . . . 1 . . . . . . . . . . . . . . . . . . . Robots Hacked 92 | . . . . . . . . . . 16 9 5 9 3 . 4 . . 5 7 11 12 7 1 . 3 . . Non-combat 20 | . . . . . . . . . . 9 . 4 1 2 . . . . . 1 . 1 . 1 . 1 . . Combat 72 | . . . . . . . . . . 7 9 1 8 1 . 4 . . 5 6 11 11 7 . . 2 . . Robot Hacks Applied 125 | . . . . . . . . . . 24 9 14 10 8 . 4 . . 5 8 13 13 7 4 . 6 . . parse_system 11 | . . . . . . . . . . 3 . 3 1 1 . . . . . 1 1 . . . . 1 . . no_distress 3 | . . . . . . . . . . 1 . . . 1 . . . . . . . . . . . 1 . . generate_echo 1 | . . . . . . . . . . . . 1 . . . . . . . . . . . . . . . . find_fabricator 2 | . . . . . . . . . . 1 . 1 . . . . . . . . . . . . . . . . drop_inventory 4 | . . . . . . . . . . 1 . 1 . . . . . . . 1 . . . . . 1 . . locate_stockpiles 1 | . . . . . . . . . . 1 . . . . . . . . . . . . . . . . . . release_backups 1 | . . . . . . . . . . 1 . . . . . . . . . . . . . . . . . . purge_threat 12 | . . . . . . . . . . 1 . 3 . 5 . . . . . . . . . 3 . . . . find_terminals 2 | . . . . . . . . . . 1 . . . 1 . . . . . . . . . . . . . . reprogram_traps 1 | . . . . . . . . . . 1 . . . . . . . . . . . . . . . . . . block_reporting 1 | . . . . . . . . . . . . 1 . . . . . . . . . . . . . . . . recall_investigation 1 | . . . . . . . . . . 1 . . . . . . . . . . . . . . . . . . map_route 4 | . . . . . . . . . . 2 . 1 . . . . . . . . . 1 . . . . . . find_garrison 1 | . . . . . . . . . . . . . . . . . . . . . . . . . . 1 . . reboot_propulsion 1 | . . . . . . . . . . 1 . . . . . . . . . . . . . . . . . . scatter_targeting 3 | . . . . . . . . . . . . . . . . 2 . . . . . 1 . . . . . . spike_heat 1 | . . . . . . . . . . . . . . . . . . . . . . 1 . . . . . . amplify_resonance 1 | . . . . . . . . . . 1 . . . . . . . . . . . . . . . . . . overwrite_iff 18 | . . . . . . . . . . 2 1 1 . . . 1 . . 2 2 4 1 3 . . 1 . . streamctrl_high 2 | . . . . . . . . . . 1 . . 1 . . . . . . . . . . . . . . . formatsys_low 4 | . . . . . . . . . . 1 . 2 . . . . . . . . . . . 1 . . . . formatsys_high 50 | . . . . . . . . . . 4 8 . 8 . . 1 . . 3 4 8 9 4 . . 1 . . Relay Couplers Released 102 | . . . . . . . . . . . 15 . 15 . . . . . 27 . 23 . 14 . . . 8 . Machine Destruction 102 | . . . . . . . . . . . 15 . 15 . . . . . 27 . 23 . 14 . . . 8 . Attached 48 | . . . . . . . . . . 6 3 3 4 2 . 2 . . 5 2 7 3 7 . 2 . 2 . Merged Code Value 175 | . . . . . . . . . . . . . . . . . . . . . 115 . 36 . . . 24 . Fabnet Peak Effective % . | . . . . . . . . . . . . . . . . . . . . . . . . . . . . . Robots Rewired 22 | . . . . . . . . . . . . . . . 4 . . . 2 . 6 . 10 . . . . . Allies Hacked 5 | . . . . . . . . . . 1 . . 1 . . . . . 1 . 1 1 . . . . . . Hacks Repelled . | . . . . . . . . . . . . . . . . . . . . . . . . . . . . . Allies | -11 -10 -10 -9 -9 -9 -8 -8 -7 -7 -7 -7 -6 -6 -6 -6 -6 -6 -6 -6 -5 -5 -5 -5 -4 -4 -4 -4 -3 -------- Run | Jun Mat Min Mat Min Exi Min Mat Fac Gar Fac Gar Fac Gar Fac Ext Cet Arc Hub Gar Fac Gar Fac Gar Fac Was Fac Gar Res Total Allies 117 | . . . . . . . . . . 8 13 3 10 1 12 7 . . 7 6 20 10 17 1 . 2 . . Largest Group 12 | . . . . . . . . . . 4 7 5 4 4 12 8 7 3 5 4 9 7 10 10 . 1 . . Highest-Rated Group 674 | . . . . . . . . . . 131 277 147 144 122 466 674 628 288 390 116 327 264 449 449 . 47 . . Highest-Rated Ally 159 | . . . . . . . . . . 105 95 39 93 51 159 143 135 96 99 47 95 137 137 49 . 47 . . Total Orders 3 | . . . . . . . . . . . 1 . . . . . . . . . . 1 . 1 . . . . STAY 3 | . . . . . . . . . . . 1 . . . . . . . . . . 1 . 1 . . . . Ally Attacks 1082 | . . . . . . . . . . 54 57 47 54 56 142 97 26 58 65 41 144 90 66 77 . 8 . . Total Damage 30223 | . . . . . . . . . . 953 2021 1899 1642 1078 3328 2878 1109 2249 1833 824 3654 2539 1826 2121 . 269 . . Kills 196 | . . . . . . . . . . 4 19 15 7 13 26 13 4 13 13 2 23 18 15 11 . . . . Allies Corrupted 3 | . . . . . . . . . . 2 . 1 . . . . . . . . . . . . . . . . Allies Melted 1 | . . . . . . . . . . . . . . . . . . . . . 1 . . . . . . . Intel | -11 -10 -10 -9 -9 -9 -8 -8 -7 -7 -7 -7 -6 -6 -6 -6 -6 -6 -6 -6 -5 -5 -5 -5 -4 -4 -4 -4 -3 ------- Run | Jun Mat Min Mat Min Exi Min Mat Fac Gar Fac Gar Fac Gar Fac Ext Cet Arc Hub Gar Fac Gar Fac Gar Fac Was Fac Gar Res Robot Analysis Total 1 | . . . . . . . . . . . . . . . . . . . . . . . . . . 1 . . Derelict Logs Recovered 1 | . . . . 1 . . . . . . . . . . . . . . . . . . . . . . . . Drone Launches . | . . . . . . . . . . . . . . . . . . . . . . . . . . . . . Drone Recoveries . | . . . . . . . . . . . . . . . . . . . . . . . . . . . . . Exploration | -11 -10 -10 -9 -9 -9 -8 -8 -7 -7 -7 -7 -6 -6 -6 -6 -6 -6 -6 -6 -5 -5 -5 -5 -4 -4 -4 -4 -3 ------------- Run | Jun Mat Min Mat Min Exi Min Mat Fac Gar Fac Gar Fac Gar Fac Ext Cet Arc Hub Gar Fac Gar Fac Gar Fac Was Fac Gar Res Turns Passed 23611 | 71 406 60 1056 685 779 72 624 394 1222 1858 1389 1557 1862 940 963 520 123 559 843 589 1540 1277 1264 807 175 1092 781 103 Spaces Moved 12072 | 56 215 38 341 227 361 31 253 273 580 1046 726 686 892 543 525 249 46 301 441 322 823 667 697 503 168 532 456 74 Core 216 | 27 . . . . . . . . . . . . . . . . . . . . . . . . 154 35 . . Treads 7899 | 29 215 38 341 227 361 31 253 87 108 126 363 686 892 543 525 249 46 301 441 322 823 609 . . 9 274 . . Legs 3299 | . . . . . . . . . . 920 363 . . . . . . . . . . 58 697 503 5 223 456 74 Wheels 658 | . . . . . . . . 186 472 . . . . . . . . . . . . . . . . . . . Hover . | . . . . . . . . . . . . . . . . . . . . . . . . . . . . . Flight . | . . . . . . . . . . . . . . . . . . . . . . . . . . . . . Fastest Speed 50 | 50 160 160 240 240 160 240 160 115 115 110 110 160 158 158 158 158 160 160 160 160 160 120 120 120 50 50 120 120 Average Speed 160 | 106 160 160 240 240 215 240 180 129 149 145 176 207 163 158 158 162 160 160 160 160 160 158 128 136 60 137 123 120 Slowest Speed 400 | 160 160 160 240 240 240 240 240 240 240 232 240 240 237 158 158 330 160 160 160 160 160 260 190 260 190 400 190 120 Overloaded Moves . | . . . . . . . . . . . . . . . . . . . . . . . . . . . . . Propulsion Burnouts . | . . . . . . . . . . . . . . . . . . . . . . . . . . . . . Robots Hopped . | . . . . . . . . . . . . . . . . . . . . . . . . . . . . . Cave-ins Triggered . | . . . . . . . . . . . . . . . . . . . . . . . . . . . . . Exploration Rate (%) 44 | 4 51 16 35 62 70 11 28 13 67 22 85 29 84 20 62 66 72 45 59 14 96 15 91 24 73 15 53 5 Regions Visited 28 Branch Regions 8 Pre-discovered Areas 1 | . . . . . 1 . . . . . . . . . . . . . . . . . . . . . . . Known Exits Taken 9 | . . . 1 . . . . 1 . 1 . 1 . 1 . . . 1 . 1 . 1 . . . 1 . . Unknown Exits Taken 10 | 1 1 1 . 1 1 1 1 . . . . . . . 1 1 1 . . . . . . . . . . . Scrap Searched 1 | . . . . 1 . . . . . . . . . . . . . . . . . . . . . . . . Spaces Dug 69 | . . . . . . . . . 17 1 . . 1 11 . . . 6 . 8 . . . . . 25 . . Terrain Destroyed 546 | . . . . . . . 54 . 74 21 . 6 2 12 59 . 12 19 . 12 1 20 6 33 . 68 145 2 Melee 1 | . . . . . . . . . . 1 . . . . . . . . . . . . . . . . . . Projectile 130 | . . . . . . . . . 5 7 . 6 1 12 13 . 12 19 . 12 1 8 6 1 . 10 15 2 AOE 415 | . . . . . . . 54 . 69 13 . . 1 . 46 . . . . . . 12 . 32 . 58 130 . Terrain Rammed . | . . . . . . . . . . . . . . . . . . . . . . . . . . . . . Walls Destroyed . | . . . . . . . . . . . . . . . . . . . . . . . . . . . . . Machines Disabled . | . . . . . . . . . . . . . . . . . . . . . . . . . . . . . Actions | -11 -10 -10 -9 -9 -9 -8 -8 -7 -7 -7 -7 -6 -6 -6 -6 -6 -6 -6 -6 -5 -5 -5 -5 -4 -4 -4 -4 -3 --------- Run | Jun Mat Min Mat Min Exi Min Mat Fac Gar Fac Gar Fac Gar Fac Ext Cet Arc Hub Gar Fac Gar Fac Gar Fac Was Fac Gar Res Total 14787 | 66 249 37 440 303 364 30 347 304 766 1270 813 776 1221 601 597 330 64 335 547 360 980 812 929 575 244 767 581 79 Wait 755 | . 2 . . 29 . . 14 3 10 48 . 19 194 . 22 17 . 3 33 2 49 22 66 15 60 116 31 . Move 12049 | 55 214 37 340 226 360 30 252 273 579 1045 724 686 891 542 524 248 45 301 440 322 822 667 696 503 167 531 455 74 Hop . | . . . . . . . . . . . . . . . . . . . . . . . . . . . . . Pick Up 179 | 6 12 . 2 2 2 . 8 4 26 9 11 2 19 5 3 8 2 2 8 2 13 7 17 6 3 . . . Fast Attach 157 | 3 3 . 4 . . . 5 5 5 16 7 5 12 5 1 6 . 3 2 . 3 20 7 2 2 21 20 . Attach 110 | 2 1 . 5 4 1 . 5 2 12 8 4 5 7 3 2 7 . 1 5 4 5 9 5 8 4 1 . . Detach 23 | . . . . . 1 . . 2 2 3 . 2 . 2 . 2 . . 1 . . 2 1 2 1 1 1 . Swap 92 | . . . 3 1 . . 1 . 14 12 5 3 10 1 3 3 . 2 5 3 5 5 3 2 . 1 10 . Drop 238 | . 1 . 7 . . . 6 5 19 24 14 5 24 11 4 13 2 3 8 1 10 21 19 7 7 7 20 . Fire 998 | . 15 . 77 37 . . 56 10 83 70 25 42 55 31 38 26 15 20 23 25 46 53 90 27 . 86 44 4 Melee 52 | . . . . . . . . . 12 29 7 . 4 . . . . . . . . . . . . . . . Ram . | . . . . . . . . . . . . . . . . . . . . . . . . . . . . . Kick 10 | . . . . . . . . . . 6 . . . . . . . . . . . . . 3 . . . 1 Crush 23 | . 1 . 2 4 . . . . . . . 7 . 1 . . . . . . . 6 . . . 2 . . Escape Stasis 46 | . . . . . . . . . 4 . 16 . . . . . . . 4 . . . 22 . . . . . Rewire 53 | . . . . . . . . . . . . . 5 . . . . . 18 1 27 . 1 . . 1 . . Trap 2 | . . . . . . . . . . . . . . . . . . . . . . . 2 . . . . . Miscellaneous . | . . . . . . . . . . . . . . . . . . . . . . . . . . . . . Route ------- -11/Junkyard -10/Materials (discovered 3 exits: *Mat x2 / [*Min]) -10/Mines -9/Materials (discovered 2 exits: *Mat / *Min) -9/Mines (discovered 3 exits: *Mat x2 / *Exi) -9/Exiles -8/Mines -8/Materials -7/Factory -7/Garrison (discovered 3 exits: *Fac x3) -7/Factory (discovered 3 exits: *Fac / *Low / Gar) -7/Garrison (discovered 3 exits: *Fac x3) -6/Factory (discovered 3 exits: *Fac / *Low / Gar) -6/Garrison (discovered 3 exits: *Fac x3) -6/Factory (discovered 5 exits: *Fac / Low x2 / *Ext x2) -6/Extension (discovered 2 exits: *Fac / *Cet) -6/Cetus (discovered 2 exits: *Fac / [*Arc]) -6/Archives -6/Hub_04(d) (discovered 3 exits: *Fac x2 / Gar) -6/Garrison (discovered 2 exits: *Fac x2) -5/Factory -5/Garrison (discovered 4 exits: *Fac x3 / *Fac) -5/Factory -5/Garrison (discovered 3 exits: *Fac x3) -4/Factory -4/Waste -4/Factory (discovered 4 exits: *Upp x2 / Arm / Gar) -4/Garrison -3/Research History --------- Turn | Location | Event 5 | -11/Junkyard | Discovered new exit (range 16) 72 | -11/Junkyard | Entered Materials 156 | -10/Materials | Discovered new exit (range 12) 304 | -10/Materials | Build established: Mutant 368 | -10/Materials | Discovered new exit (range 13) 457 | -10/Materials | Discovered new exit (range 14) 478 | -10/Materials | Entered Mines 512 | -10/Mines | Discovered new exit (range 16) 538 | -10/Mines | Entered Materials 538 | -9/Materials | Evolved 2 slots: Utility x2 991 | -9/Materials | Discovered new exit (range 16) 1387 | -9/Materials | Identified exit to Mines 1594 | -9/Materials | Entered Mines 1612 | -9/Mines | Met a Derelict bent on vengeance 1714 | -9/Mines | Discovered new exit (range 10) 1934 | -9/Mines | Learned Materials stockpile data 1988 | -9/Mines | Assembled infested the area 1993 | -9/Mines | Assisted by a Guerilla fighting off Assembled 2164 | -9/Mines | Core integrity fell below 50% 2231 | -9/Mines | Lost 4 parts (2n2u) 2234 | -9/Mines | Discovered new exit (range 6) 2270 | -9/Mines | Deemed a non-threat by the Exiles lab entrance 2270 | -9/Mines | Discovered new exit (range 5) 2279 | -9/Mines | Entered Exiles 2339 | -9/Exiles | Met 8R-AWN 2378 | -9/Exiles | Met EX-HEX 2474 | -9/Exiles | Met EX-DEC 2483 | -9/Exiles | Learned location of Zion (-6) 2811 | -9/Exiles | Met EX-BIN 2843 | -9/Exiles | Aligned with FarCom system 2844 | -9/Exiles | Given EX-Vault access code 2881 | -9/Exiles | Opened EX-Vault 2894 | -9/Exiles | Found YOLO Cannon 2930 | -9/Exiles | Warned to stay clear of 0b10 Research branches 3039 | -9/Exiles | Discovered new exit (range 10) 3058 | -9/Exiles | Left Exiles lab with YOLO Cannon 3058 | -9/Exiles | Entered Mines 3114 | -8/Mines | Discovered new exit (range 7) 3130 | -8/Mines | Entered Materials 3130 | -8/Materials | Evolved 2 slots: Propulsion x1, Weapon x1 3418 | -8/Materials | Discovered new exit (range 11) 3754 | -8/Materials | Entered Factory 3754 | -7/Factory | Evolved 2 slots: Propulsion x1, Utility x1 3870 | -7/Factory | Build established: Scavenger-Skirmisher 4148 | -7/Factory | Identified exit to Garrison 4148 | -7/Factory | Entered Garrison 4314 | -7/Garrison | Discovered new exit (range 47) 4314 | -7/Garrison | Discovered new exit (range 63) 4314 | -7/Garrison | Discovered new exit (range 53) 4598 | -7/Garrison | Installed Relay Interface Framework 4662 | -7/Garrison | Triggered checkpoint 4755 | -7/Garrison | Expanded RIF knowledge: Structural Interface 4763 | -7/Garrison | Lost 3 parts (1p1n1u) 4989 | -7/Garrison | Triggered checkpoint 5009 | -7/Garrison | Triggered checkpoint 5033 | -7/Garrison | Triggered checkpoint 5035 | -7/Garrison | Triggered checkpoint 5342 | -7/Garrison | Triggered checkpoint 5370 | -7/Garrison | Entered Factory 5435 | -7/Factory | Discovered new exit (range 15) 5714 | -7/Factory | Discovered new exit (range 8) 5777 | -7/Factory | Build established: Bothacker-Mutant 5793 | -7/Factory | Identified exit to Lower Caves 5910 | -7/Factory | Identified exit to Garrison 6275 | -7/Factory | System corruption reached 10% 6854 | -7/Factory | Cargo convoy interrupted 6863 | -7/Factory | Core integrity fell below 50% 6896 | -7/Factory | Destroyed 9 combat bots 6918 | -7/Factory | Found Prototype Hackware 7228 | -7/Factory | Entered Garrison 7228 | -7/Garrison | Accompanied by 1 ally 7248 | -7/Garrison | Triggered checkpoint 7262 | -7/Garrison | Learned Factory security intel 7282 | -7/Garrison | Build established: Mutant 7282 | -7/Garrison | Garrison Relay disabled 7387 | -7/Garrison | Found embedded Infiltrators 7416 | -7/Garrison | Triggered checkpoint 7420 | -7/Garrison | Triggered checkpoint 7472 | -7/Garrison | Triggered checkpoint 7474 | -7/Garrison | Triggered checkpoint 7526 | -7/Garrison | Core integrity fell below 20% 7716 | -7/Garrison | Discovered new exit (range 12) 7782 | -7/Garrison | Triggered checkpoint 7802 | -7/Garrison | Garrison Relay disabled 8073 | -7/Garrison | Expanded RIF knowledge: Watcher Feeds 8104 | -7/Garrison | Garrison Relay disabled 8132 | -7/Garrison | Build established: Bothacker-Mutant 8208 | -7/Garrison | Triggered checkpoint 8242 | -7/Garrison | Discovered new exit (range 3) 8269 | -7/Garrison | Rescued a captive Derelict 8275 | -7/Garrison | Rescued a captive Derelict 8457 | -7/Garrison | Discovered new exit (range 12) 8462 | -7/Garrison | Triggered checkpoint 8479 | -7/Garrison | Garrison Relay disabled 8617 | -7/Garrison | Entered Factory 8617 | -6/Factory | Accompanied by 5 allies 8617 | -6/Factory | Evolved 2 slots: Power x1, Utility x1 8656 | -6/Factory | Discovered new exit (range 21) 9210 | -6/Factory | Hacking Suite fried by hacking feedback 9654 | -6/Factory | P-60 Hacker assimilated allied Guardian 4b 9781 | -6/Factory | Discovered new exit (range 15) 9930 | -6/Factory | Identified exit to Factory 10017 | -6/Factory | First assault squad dispatched 10038 | -6/Factory | Identified Exp. Hacking Suite 10174 | -6/Factory | Identified exit to Garrison 10174 | -6/Factory | Entered Garrison 10174 | -6/Garrison | Accompanied by 1 ally 10174 | -6/Garrison | Spotted B-90 Cyclops 10201 | -6/Garrison | Lost 3 parts (1p1n1u) 10318 | -6/Garrison | Triggered checkpoint 10427 | -6/Garrison | Garrison Relay disabled 10559 | -6/Garrison | Spotted B-75 Beast 10586 | -6/Garrison | Found Adv. Powered Armor 10615 | -6/Garrison | Destroyed B-75 Beast 10652 | -6/Garrison | Found Adv. Powered Armor 10656 | -6/Garrison | Found Antimissile System 10674 | -6/Garrison | Found Unknown Launcher 10674 | -6/Garrison | Identified Gamma Bomb Array 10844 | -6/Garrison | Triggered checkpoint 10933 | -6/Garrison | Discovered new exit (range 15) 10962 | -6/Garrison | Expanded RIF knowledge: Zone Cloak 11008 | -6/Garrison | Triggered checkpoint 11029 | -6/Garrison | Garrison Relay disabled 11238 | -6/Garrison | Triggered checkpoint 11312 | -6/Garrison | Discovered new exit (range 14) 11446 | -6/Garrison | Triggered checkpoint 11460 | -6/Garrison | Garrison Relay disabled 11635 | -6/Garrison | Discovered new exit (range 10) 11670 | -6/Garrison | Discovered new exit (range 6) 11670 | -6/Garrison | Discovered new exit (range 61) 11670 | -6/Garrison | Discovered new exit (range 40) 11734 | -6/Garrison | Triggered checkpoint 11766 | -6/Garrison | Garrison Relay disabled 11818 | -6/Garrison | Spotted B-75 Beast 11835 | -6/Garrison | Allies destroyed B-75 Beast 11855 | -6/Garrison | Found Relay Coupler [Proto] 11858 | -6/Garrison | Found Relay Coupler [Proto] 11861 | -6/Garrison | Found Relay Coupler [Proto] 11865 | -6/Garrison | Found Relay Coupler [Proto] 11928 | -6/Garrison | Rescued a captive Derelict 12034 | -6/Garrison | Identified exit to Factory 12036 | -6/Garrison | Entered Factory 12036 | -6/Factory | Accompanied by 3 allies 12193 | -6/Factory | Identified exit to Lower Caves 12193 | -6/Factory | Identified exit to Extension 12211 | -6/Factory | Build established: Botlord-Mutant 12362 | -6/Factory | Fabricated T-07 Excavator? 12596 | -6/Factory | Fabricated Adv. Remote Datajack? 12699 | -6/Factory | Discovered exit to Factory (range 11) 12791 | -6/Factory | Found Prototype Launcher 12791 | -6/Factory | Identified Rocket Array 12801 | -6/Factory | Found Faulty Rocket Array 12976 | -6/Factory | Entered Extension 13037 | -6/Extension | Rescued a captive Derelict 13048 | -6/Extension | Rescued A7 13098 | -6/Extension | Rescued a captive Derelict 13099 | -6/Extension | Rescued a captive Derelict 13131 | -6/Extension | Rescued a captive Derelict 13145 | -6/Extension | Rescued a captive Derelict 13152 | -6/Extension | Rescued a captive Derelict 13274 | -6/Extension | Rescued a captive Derelict 13326 | -6/Extension | First assault squad dispatched 13676 | -6/Extension | Spotted B-75 Beast 13684 | -6/Extension | Destroyed B-75 Beast 13698 | -6/Extension | Build established: Botlord-Skirmisher 13698 | -6/Extension | Spotted B-75 Beast 13712 | -6/Extension | Destroyed B-75 Beast 13899 | -6/Extension | Discovered new exit (range 16) 13903 | -6/Extension | Discovered exit to Factory (range 14) 13939 | -6/Extension | Entered Cetus 13939 | -6/Cetus | Accompanied by 4 allies (A7) 13944 | -6/Cetus | Acquired a Cetus Manufacturing Module code from A7 13962 | -6/Cetus | Spotted Cetus Guard 13962 | -6/Cetus | Spotted Cetus Guard 13966 | -6/Cetus | Spotted Cetus Guard 13966 | -6/Cetus | Spotted Cetus Guard 13977 | -6/Cetus | Allies destroyed Cetus Guard 13984 | -6/Cetus | Allies destroyed Cetus Guard 13989 | -6/Cetus | Destroyed Cetus Guard 14123 | -6/Cetus | Started Cetus Manufacturing Module 14143 | -6/Cetus | Discovered new exit (range 15) 14148 | -6/Cetus | Manufactured an Enhanced Grunt 14164 | -6/Cetus | Discovered exit to Factory (range 27) 14173 | -6/Cetus | Manufactured an Enhanced Grunt 14178 | -6/Cetus | Spotted Cetus Guard 14181 | -6/Cetus | Spotted Cetus Guard 14183 | -6/Cetus | Spotted Cetus Guard 14185 | -6/Cetus | Destroyed Cetus Guard 14185 | -6/Cetus | Spotted Cetus Guard 14198 | -6/Cetus | Manufactured an Enhanced Grunt 14201 | -6/Cetus | Destroyed Cetus Guard 14204 | -6/Cetus | Destroyed Cetus Guard 14207 | -6/Cetus | Allies destroyed Cetus Guard 14223 | -6/Cetus | Manufactured an Enhanced Grunt 14228 | -6/Cetus | Met Revision 17 14248 | -6/Cetus | Manufactured an Enhanced Grunt 14413 | -6/Cetus | Escorted A7 to Cetus Mainframe 14459 | -6/Cetus | Entered Archives 14459 | -6/Archives | Accompanied by 7 allies (A7) 14464 | -6/Archives | Received a hacking code to weaken MAIN.C 14553 | -6/Archives | Discovered new exit (range 16) 14582 | -6/Archives | Entered Hub_04(d) 14582 | -6/Hub_04(d) | Accompanied by 3 allies 14769 | -6/Hub_04(d) | Build established: Botlord-Tank 14799 | -6/Hub_04(d) | Discovered exit to Factory (range 16) 15032 | -6/Hub_04(d) | Discovered exit to Factory (range 12) 15069 | -6/Hub_04(d) | Spotted B-75 Beast 15087 | -6/Hub_04(d) | Allies destroyed B-75 Beast 15141 | -6/Hub_04(d) | Identified exit to Garrison 15141 | -6/Hub_04(d) | Entered Garrison 15141 | -6/Garrison | Accompanied by 2 allies 15178 | -6/Garrison | Rewired Striker 15192 | -6/Garrison | Rewired Striker 15218 | -6/Garrison | Triggered checkpoint 15224 | -6/Garrison | Garrison Relay disabled 15328 | -6/Garrison | Triggered checkpoint 15328 | -6/Garrison | Spotted B-75 Beast 15345 | -6/Garrison | Destroyed B-75 Beast 15368 | -6/Garrison | Triggered checkpoint 15382 | -6/Garrison | Triggered checkpoint 15452 | -6/Garrison | Phase Generator disabled 15452 | -6/Garrison | Allies destroyed Striker 15506 | -6/Garrison | Expanded RIF knowledge: Alert ID Control 15524 | -6/Garrison | Discovered exit to Factory (range 3) 15554 | -6/Garrison | Triggered checkpoint 15571 | -6/Garrison | Garrison Relay disabled 15676 | -6/Garrison | Triggered checkpoint 15738 | -6/Garrison | Garrison Relay disabled 15778 | -6/Garrison | Triggered checkpoint 15823 | -6/Garrison | Garrison Relay disabled 15843 | -6/Garrison | Garrison Relay disabled 15870 | -6/Garrison | Garrison Relay disabled 15876 | -6/Garrison | System corruption reached 10% 15928 | -6/Garrison | Discovered exit to Factory (range 15) 15944 | -6/Garrison | Learned Factory security intel 15984 | -6/Garrison | Entered Factory 15984 | -5/Factory | Accompanied by 3 allies 15984 | -5/Factory | Evolved 2 slots: Utility x2 16284 | -5/Factory | First assault squad dispatched 16382 | -5/Factory | Build established: Botlord-Mutant 16573 | -5/Factory | Identified exit to Garrison 16573 | -5/Factory | Entered Garrison 16755 | -5/Garrison | Found embedded Infiltrators 16758 | -5/Garrison | Triggered checkpoint 16799 | -5/Garrison | Expanded RIF knowledge: Code Merge 16815 | -5/Garrison | Garrison Relay disabled 16914 | -5/Garrison | Triggered checkpoint 16918 | -5/Garrison | Triggered checkpoint 16921 | -5/Garrison | Triggered checkpoint 16992 | -5/Garrison | Discovered new exit (range 10) 17006 | -5/Garrison | Triggered checkpoint 17064 | -5/Garrison | Garrison Relay disabled 17213 | -5/Garrison | Garrison Relay disabled 17361 | -5/Garrison | Discovered new exit (range 10) 17378 | -5/Garrison | Triggered checkpoint 17402 | -5/Garrison | Triggered checkpoint 17408 | -5/Garrison | Garrison Relay disabled 17636 | -5/Garrison | Triggered checkpoint 17653 | -5/Garrison | Rescued a captive Derelict 17654 | -5/Garrison | Rescued a captive Derelict 17681 | -5/Garrison | Garrison Relay disabled 17750 | -5/Garrison | Triggered checkpoint 17760 | -5/Garrison | Discovered new exit (range 3) 17838 | -5/Garrison | Discovered new exit (range 8) 17874 | -5/Garrison | P-70 Sage assimilated allied Soldier 6k 18113 | -5/Garrison | Entered Factory 18113 | -5/Factory | Accompanied by 7 allies 18186 | -5/Factory | Found Hvy. Reactive Plating 18799 | -5/Factory | Garrison activated, responded to threat 19148 | -5/Factory | Cargo convoy interrupted 19154 | -5/Factory | Garrison activated, responded to threat 19176 | -5/Factory | System corruption reached 10% 19194 | -5/Factory | Found Prototype Device 19194 | -5/Factory | Identified Exp. Shock Absorption System 19256 | -5/Factory | Garrison activated, responded to threat 19279 | -5/Factory | Core integrity fell below 50% 19334 | -5/Factory | Found Prototype Device 19334 | -5/Factory | Identified Femtoactuators 19390 | -5/Factory | Identified exit to Garrison 19390 | -5/Factory | Entered Garrison 19390 | -5/Garrison | Accompanied by 1 ally 19411 | -5/Garrison | Expanded RIF knowledge: Threat Obfuscation 19527 | -5/Garrison | Garrison Relay disabled 19590 | -5/Garrison | Triggered checkpoint 19593 | -5/Garrison | Triggered checkpoint 19659 | -5/Garrison | Destroyed 11 combat bots 19712 | -5/Garrison | Discovered new exit (range 12) 19722 | -5/Garrison | Triggered checkpoint 19742 | -5/Garrison | Garrison Relay disabled 19790 | -5/Garrison | Build established: Botlord-Tank 19810 | -5/Garrison | Spotted B-90 Cyclops 19990 | -5/Garrison | Found Prototype Device 20087 | -5/Garrison | Discovered new exit (range 14) 20164 | -5/Garrison | Triggered checkpoint 20182 | -5/Garrison | Triggered checkpoint 20197 | -5/Garrison | Discovered new exit (range 68) 20197 | -5/Garrison | Discovered new exit (range 40) 20197 | -5/Garrison | Discovered new exit (range 25) 20211 | -5/Garrison | Garrison Relay disabled 20336 | -5/Garrison | Triggered checkpoint 20397 | -5/Garrison | Build established: Botlord-Mutant 20419 | -5/Garrison | Garrison Relay disabled 20654 | -5/Garrison | Entered Factory 20654 | -4/Factory | Accompanied by 10 allies 20654 | -4/Factory | Evolved 2 slots: Utility x2 20738 | -4/Factory | Spotted B-86 Titan 20754 | -4/Factory | Allies destroyed B-86 Titan 20822 | -4/Factory | Repaired Centrium Medium Armor Plating 20904 | -4/Factory | First assault squad dispatched 21369 | -4/Factory | Spotted B-86 Titan 21436 | -4/Factory | Discovered new exit (range 16) 21461 | -4/Factory | Sucked down chute 21461 | -4/Factory | Entered Waste 21539 | -4/Waste | Spotted C-40 Crusher 21539 | -4/Waste | Spotted C-40 Crusher 21548 | -4/Waste | Spotted C-40 Crusher 21548 | -4/Waste | Spotted C-40 Crusher 21564 | -4/Waste | Spotted C-40 Crusher 21576 | -4/Waste | Spotted C-40 Crusher 21583 | -4/Waste | Crushed by Compactor (0 parts destroyed, 1 dropped) 21620 | -4/Waste | Discovered new exit (range 12) 21636 | -4/Waste | Entered Factory 21714 | -4/Factory | Build established: Mutant 21731 | -4/Factory | Fabricated Enh. Nova Cannon (x1) 21949 | -4/Factory | Identified exit to Upper Caves 21949 | -4/Factory | Identified exit to Armory 22321 | -4/Factory | Lost 3 parts (1p2n) 22556 | -4/Factory | Lost 3 parts (1p1n1w) 22681 | -4/Factory | Garrison activated, responded to threat 22716 | -4/Factory | Core integrity fell below 50% 22724 | -4/Factory | Identified exit to Garrison 22728 | -4/Factory | Entered Garrison 22746 | -4/Garrison | Triggered checkpoint 22856 | -4/Garrison | Triggered checkpoint 22860 | -4/Garrison | Garrison Relay disabled 22904 | -4/Garrison | Spotted B-86 Titan 23016 | -4/Garrison | Destroyed B-86 Titan 23027 | -4/Garrison | Found Hvy. Reflective Plating 23043 | -4/Garrison | Lost 3 parts (1p1n1u) 23132 | -4/Garrison | Build established: Scavenger-Skirmisher 23152 | -4/Garrison | Triggered checkpoint 23152 | -4/Garrison | Triggered checkpoint 23251 | -4/Garrison | Phase Generator disabled 23270 | -4/Garrison | Discovered new exit (range 14) 23282 | -4/Garrison | Destroyed 10 combat bots 23425 | -4/Garrison | Garrison Relay disabled 23458 | -4/Garrison | Triggered checkpoint 23509 | -4/Garrison | Entered Research 23509 | -3/Research | Evolved 2 slots: Power x1, Weapon x1 23612 | -3/Research | Self-destructed Last Messages --------------- 23512_ RIF reveals location of hidden door. 23512_ O-24 Administrator: "IFF HANDSHAKE FAILED. SECURING TERMINAL." 23514_ FARCOM_MSG: Anonymous tester bot, EX-BIN here, just a quick reminder that unless you're really into science and its potentially deadly consequences, consider trying your best to avoid entering Testing or Quarantine. 23514_ ALERT: All DSF locations entering lockdown mode. 23521_ ALERT: Hostiles spotted, dispatching reinforcements to Terminal R015. 23522_ RIF reveals location of hidden door. 23532_ >> Machine Analyzer network decryption results: 23532_ Terminal x2 23536_ Terminal disabled. 23539_ Destroyed Lgt. Deuterium Engine. 23542_ Fabricator disabled. 23542_ Slug penetrates Fabricator. 23549_ >> Watcher Feeds: Established visual feed link with W-44 Eye. 23567_ Kicked W-44 Eye out of the way. 23567_ W-44 Eye sends out distress signal. 23592_ >> Watcher Feeds: Feed link from W-44 Eye lost. Map ----- +----------------------------------------------------+ | | | | | | | | | | | | | | | | | ??????????????#############?#############????????? | | ??????????????# #?# #????????? | | ??????????????# #?# ! #????????? | | ??????????????# """"" ### #????????? | | ??????????????# """"" + + #????????? | | ??????????????# """"" ### #????????? | | ??????????????# #?# #????????? | | ??????????????# #?# #????????? | | ??????????????######+#############+######????????? | | ????????????????# ##?????????? | | ????????????????# #?????????? | | ????????????????# "#?????????? | | ????????????????# """ % "#?????????? | | ????????????????########### """ T#?????????? | | ????????????????# """ * # """ "#?????????? | | ????????????????# """ # "#?????????? | | ????????????????#= """ + "#?????????? | | ????????????????# @# ^ ##?????????? | | ????????????????# # """ ####???????? | | ????????????????# # """ "" #???????? | | ????????????????# # Y """ ""#???????? | | ????????????????# ! # F" F"#???????? | | ????????????????########### """ ""#???????? | | ??????????????????????????# ""g "" #???????" | | ??????????????????????????#! g ####???????" | | ??????????????????????????# g #??????????" | | ??????????????????????????# #??????????? | | ??????????????????????????# ########??????????? | | ??????????????????????????# #?????????????????? | | ??????????????????????????# ########??????????? | | ??????????????????????????# #??????????? | | ??????????????????????????# #??????????? | | ??????????????????????????# #??????????? | | ??????????????????????????# #??????????? | | ??????????????????????????######## #??????????? | | ?????????????????????????????????# #??????????? | | ?????????????????????????????????# ###########? | | ???????????????????????"""??"""??# | | ???????????????????????""" """ / | | ???????????????????????""" """ # | | ????????????????????????? # | | ??????????????????????? ?# ###+######## | +----------------------------------------------------+ Best States ------------- Heat Dissipation 133 Coolant Potential 80 Energy Generation 43 Energy Capacity 885 Matter Stores 521 Matter Capacity 550 Sight Range 18 Terrain Scan Density 10 Jamming Range 16 Power Amplification 30 Armor Coverage 1600 Resistance: KI 40 Resistance: TH 25 Resistance: EX 75 Utility Shielding 33 Evasion (%) 55 Armor Integrity Analysis 40 Recoil Reduction 4 Offensive Hacking 16 Defensive Hacking 10 Relay Coupler Types 6 Relay Coupler Value 204 Authchip Count 1 Item Schematics ----------------- None Robot Schematics ------------------ A-15 Conveyor | -6/Factory | Hacked Fabricated ------------ T-07 Excavator | x1 | -6/Factory | Preloaded Adv. Remote Datajack | x1 | -6/Factory | Preloaded Enh. Nova Cannon | x1 | -4/Factory | Preloaded Alien Tech Used ----------------- None Achievements -------------- None Challenges ------------ None Game ------ Seed FireReflectiveProtection Manual? 0 Play Time 03:17:49 Cumulative 696.6 hours Start 2023.03.12 @ 14:22:35 End 2023.07.22 @ 14:43:08 Sessions 5 Manual Loads 0 Difficulty Rogue Special Mode None Game No. 452 Rogue 445 Adventurer 0 Explorer 7 Win Type - Total 51 Types 19/5/18/2/0/1/4/1/1 Lore% 88 Gallery% 95 Achievement% 82 Wizard Run 0 Options --------- ASCII 0 Keyboard 0 Movement Mouse Keybinds 0 Fullscreen 1 Font 18/X11Bold Map View 76x50 Tactical HUD 1 Map Filters NONE Filters NONE Steam 1 RUN: 8a1ec90b-1a6e-4707-b01d-d5b72b2cb033